[Event "*** Titled Tuesday 3|2 Blitz"]
[Site "Chess.com"]
[Date "2016.02.02"]
[Round "2"]
[White "oskariot"]
[Black "IMRosen"]
[Result "0-1"]
[WhiteElo "2333"]
[BlackElo "2256"]
[TimeControl "180+2"]
[EndTime "11:24:57 PST"]
[Termination "IMRosen won by checkmate"]

1. e4 {[%clk 0:03:01.9]} 1... d5 {[%clk 0:02:58.9]} 2. exd5 {[%clk 0:03:02.3]}
2... Nf6 {[%clk 0:03:00.6]} 3. d4 {[%clk 0:03:02.9]} 3... Bg4 {[%clk 0:02:59.7]}
4. Nf3 {[%clk 0:03:01.9]} 4... Qxd5 {[%clk 0:03:00.1]} 5. Be2 {[%clk 0:03:02.1]}
5... Nc6 {[%clk 0:03:00.8]} 6. Nc3 {[%clk 0:02:40.7]} 6... Qf5 {[%clk
0:02:56.6]} 7. h3 {[%clk 0:02:27.6]} 7... Bxf3 {[%clk 0:02:13.3]} 8. Bxf3 {[%clk
0:02:27.2]} 8... Rd8 {[%clk 0:02:09.5]} 9. Bxc6+ {[%clk 0:02:19.1]} 9... bxc6
{[%clk 0:02:11.4]} 10. O-O {[%clk 0:02:20.7]} 10... e6 {[%clk 0:02:10.4]} 11.
Re1 {[%clk 0:01:58.2]} 11... Bd6 {[%clk 0:01:53.4]} 12. Qe2 {[%clk 0:01:54.3]}
12... O-O {[%clk 0:01:51.7]} 13. Be3 {[%clk 0:01:37.7]} 13... Rb8 {[%clk
0:01:50.8]} 14. Rab1 {[%clk 0:01:35.5]} 14... Rfd8 {[%clk 0:01:51.4]} 15. Qc4
{[%clk 0:01:34.6]} 15... Rb6 {[%clk 0:01:35.9]} 16. b4 {[%clk 0:01:15.8]} 16...
Nd5 {[%clk 0:01:35.9]} 17. a3 {[%clk 0:00:56.1]} 17... Qxc2 {[%clk 0:01:29.3]}
18. Rbc1 {[%clk 0:00:51]} 18... Nxe3 {[%clk 0:01:24.2]} 19. fxe3 {[%clk
0:00:47.1]} 19... Qg6 {[%clk 0:01:25.7]} 20. Ne2 {[%clk 0:00:40.1]} 20... Rb5
{[%clk 0:01:26.8]} 21. Qxc6 {[%clk 0:00:39.7]} 21... Rg5 {[%clk 0:01:27.6]} 22.
Rf1 {[%clk 0:00:31]} 22... h5 {[%clk 0:01:27.7]} 23. Nf4 {[%clk 0:00:26.5]}
23... Bxf4 {[%clk 0:01:14.8]} 24. Rxf4 {[%clk 0:00:27.2]} 24... Rg3 {[%clk
0:01:14.7]} 25. Qe4 {[%clk 0:00:27.4]} 25... Qg5 {[%clk 0:01:09.3]} 26. Rcf1
{[%clk 0:00:28.2]} 26... Rxh3 {[%clk 0:00:49.1]} 27. Rxf7 {[%clk 0:00:26.5]}
27... Qxe3+ {[%clk 0:00:50.1]} 28. Qxe3 {[%clk 0:00:27]} 28... Rxe3 {[%clk
0:00:52]} 29. Rxc7 {[%clk 0:00:28.3]} 29... Rxd4 {[%clk 0:00:53.7]} 30. Rxa7
{[%clk 0:00:23.2]} 30... Rg4 {[%clk 0:00:50.9]} 31. b5 {[%clk 0:00:19.9]} 31...
h4 {[%clk 0:00:47.8]} 32. Kh2 {[%clk 0:00:20.4]} 32... Re2 {[%clk 0:00:48.3]}
33. Rg1 {[%clk 0:00:21.5]} 33... Rb2 {[%clk 0:00:47]} 34. a4 {[%clk 0:00:22.7]}
34... g5 {[%clk 0:00:43.5]} 35. Re7 {[%clk 0:00:20.2]} 35... Rg3 {[%clk
0:00:36.1]} 36. Rxe6 {[%clk 0:00:20]} 36... g4 {[%clk 0:00:37.6]} 37. Re4 {[%clk
0:00:18.3]} 37... Rh3# {[%clk 0:00:37.6]} 0-1

[Event "*** Titled Tuesday 3|2 Blitz"]
[Site "Chess.com"]
[Date "2016.02.02"]
[Round "2"]
[White "Nutflush"]
[Black "Hafez_Bakr"]
[Result "1-0"]
[WhiteElo "1895"]
[BlackElo "1739"]
[TimeControl "180+2"]
[EndTime "11:25:17 PST"]
[Termination "Nutflush won by resignation"]

1. e4 {[%clk 0:02:58.2]} 1... c5 {[%clk 0:03:00.2]} 2. c3 {[%clk 0:02:52.9]}
2... Nf6 {[%clk 0:02:58.3]} 3. e5 {[%clk 0:02:53.2]} 3... Nd5 {[%clk 0:02:57.7]}
4. d4 {[%clk 0:02:54.6]} 4... cxd4 {[%clk 0:02:57.4]} 5. cxd4 {[%clk 0:02:56.4]}
5... e6 {[%clk 0:02:54.6]} 6. Nf3 {[%clk 0:02:57.7]} 6... d6 {[%clk 0:02:53.4]}
7. Bc4 {[%clk 0:02:59.1]} 7... Nb6 {[%clk 0:02:53.8]} 8. Bd3 {[%clk 0:02:58.5]}
8... dxe5 {[%clk 0:02:52.7]} 9. dxe5 {[%clk 0:02:56.1]} 9... Bd7 {[%clk
0:02:53]} 10. O-O {[%clk 0:02:56.6]} 10... Be7 {[%clk 0:02:52.8]} 11. Nc3 {[%clk
0:02:54.7]} 11... Nc6 {[%clk 0:02:53.4]} 12. Qe2 {[%clk 0:02:55.4]} 12... O-O
{[%clk 0:02:54]} 13. Qe4 {[%clk 0:02:53.1]} 13... g6 {[%clk 0:02:54.9]} 14. Bh6
{[%clk 0:02:54]} 14... Re8 {[%clk 0:02:55.4]} 15. Rad1 {[%clk 0:02:40]} 15...
Nb4 {[%clk 0:02:50.6]} 16. Bb1 {[%clk 0:02:38.1]} 16... Qc8 {[%clk 0:02:51.2]}
17. Ng5 {[%clk 0:02:08.6]} 17... N4d5 {[%clk 0:02:38.9]} 18. Qf3 {[%clk
0:01:45.8]} 18... f5 {[%clk 0:02:27.8]} 19. exf6 {[%clk 0:01:43.4]} 19... Nxf6
{[%clk 0:02:14.2]} 20. Rfe1 {[%clk 0:01:39.1]} 20... Nbd5 {[%clk 0:02:03.1]} 21.
Qd3 {[%clk 0:01:25.5]} 21... Rd8 {[%clk 0:01:50.2]} 22. Nxh7 {[%clk 0:01:25]}
22... Be8 {[%clk 0:01:28.7]} 23. Nxf6+ {[%clk 0:01:22.5]} 23... Nxf6 {[%clk
0:01:28.3]} 24. Qe2 {[%clk 0:01:17.9]} 24... Rxd1 {[%clk 0:01:28.7]} 25. Rxd1
{[%clk 0:01:17.4]} 25... Bf7 {[%clk 0:01:29.5]} 26. Bf4 {[%clk 0:01:15.3]} 26...
Qc6 {[%clk 0:01:24.7]} 27. Be5 {[%clk 0:01:12.5]} 27... Rd8 {[%clk 0:01:18.8]}
28. Rxd8+ {[%clk 0:01:11.1]} 28... Bxd8 {[%clk 0:01:19]} 29. h3 {[%clk
0:01:03.1]} 29... Be7 {[%clk 0:01:15.1]} 30. Ne4 {[%clk 0:00:48.9]} 30... Qc1+
{[%clk 0:01:11.4]} 31. Kh2 {[%clk 0:00:43.4]} 31... Qxb1 {[%clk 0:00:48]} 32.
Nxf6+ {[%clk 0:00:42.1]} 32... Bxf6 {[%clk 0:00:38.5]} 33. Bxf6 {[%clk 0:00:44]}
33... Qxa2 {[%clk 0:00:32.8]} 34. Qe5 {[%clk 0:00:41.7]} 34... Qd5 {[%clk
0:00:27.4]} 35. Qb8+ {[%clk 0:00:39.8]} 1-0

[Event "*** Titled Tuesday 3|2 Blitz"]
[Site "Chess.com"]
[Date "2016.02.02"]
[Round "2"]
[White "attack2mateU"]
[Black "igorkovalenko"]
[Result "0-1"]
[WhiteElo "2502"]
[BlackElo "2529"]
[TimeControl "180+2"]
[EndTime "11:25:21 PST"]
[Termination "igorkovalenko won by resignation"]

1. Nf3 {[%clk 0:02:59.2]} 1... Nf6 {[%clk 0:03:00.7]} 2. g3 {[%clk 0:03:00.1]}
2... c5 {[%clk 0:03:01.5]} 3. Bg2 {[%clk 0:03:00.7]} 3... g6 {[%clk 0:03:02.4]}
4. O-O {[%clk 0:03:01.6]} 4... Bg7 {[%clk 0:03:04.3]} 5. c4 {[%clk 0:03:00.4]}
5... Nc6 {[%clk 0:03:03.5]} 6. Nc3 {[%clk 0:03:01.4]} 6... d6 {[%clk 0:03:04.3]}
7. d4 {[%clk 0:03:01]} 7... O-O {[%clk 0:03:04.5]} 8. dxc5 {[%clk 0:02:52.6]}
8... dxc5 {[%clk 0:03:06.4]} 9. Qa4 {[%clk 0:02:53.9]} 9... Qa5 {[%clk
0:03:06.7]} 10. Be3 {[%clk 0:02:52.7]} 10... Nd7 {[%clk 0:03:04.2]} 11. Qb3
{[%clk 0:02:30.1]} 11... Nd4 {[%clk 0:02:44.2]} 12. Bxd4 {[%clk 0:02:16]} 12...
cxd4 {[%clk 0:02:46.1]} 13. Nd5 {[%clk 0:02:17.5]} 13... Re8 {[%clk 0:02:44.5]}
14. Qd1 {[%clk 0:01:23.7]} 14... e6 {[%clk 0:02:44.8]} 15. b4 {[%clk 0:01:23.4]}
15... Qd8 {[%clk 0:02:44.2]} 16. Nf4 {[%clk 0:01:24.4]} 16... a5 {[%clk
0:02:29.3]} 17. a3 {[%clk 0:01:18.6]} 17... d3 {[%clk 0:01:54.5]} 18. Rb1 {[%clk
0:01:18.4]} 18... axb4 {[%clk 0:01:54.5]} 19. axb4 {[%clk 0:01:19.1]} 19... dxe2
{[%clk 0:01:49.5]} 20. Qxe2 {[%clk 0:01:18.9]} 20... Qc7 {[%clk 0:01:48.5]} 21.
Rfc1 {[%clk 0:01:17.8]} 21... Ne5 {[%clk 0:01:43.6]} 22. Nxe5 {[%clk 0:01:12]}
22... Bxe5 {[%clk 0:01:45.5]} 23. Nd3 {[%clk 0:01:11.6]} 23... Bd4 {[%clk
0:01:45.6]} 24. c5 {[%clk 0:00:50.9]} 24... e5 {[%clk 0:01:46.8]} 25. b5 {[%clk
0:00:51.8]} 25... Bf5 {[%clk 0:01:41.5]} 26. b6 {[%clk 0:00:49.3]} 26... Qd8
{[%clk 0:01:35.4]} 27. Be4 {[%clk 0:00:43.9]} 27... Ra3 {[%clk 0:00:58.8]} 28.
Bxf5 {[%clk 0:00:43.1]} 28... gxf5 {[%clk 0:00:59.9]} 29. Rd1 {[%clk 0:00:40.4]}
29... Qg5 {[%clk 0:00:52]} 30. Rbc1 {[%clk 0:00:37]} 30... h5 {[%clk 0:00:46.6]}
31. h4 {[%clk 0:00:35.8]} 31... Qxg3+ {[%clk 0:00:46]} 32. Kf1 {[%clk
0:00:33.4]} 32... Qh3+ {[%clk 0:00:47.6]} 33. Ke1 {[%clk 0:00:33.9]} 33... Qxh4
{[%clk 0:00:43.6]} 34. c6 {[%clk 0:00:32.2]} 34... bxc6 {[%clk 0:00:44.5]} 35.
b7 {[%clk 0:00:33.5]} 35... Rb8 {[%clk 0:00:33.7]} 36. Nxe5 {[%clk 0:00:28.1]}
36... Re3 {[%clk 0:00:28.4]} 37. Nxc6 {[%clk 0:00:17.3]} 37... Rxe2+ {[%clk
0:00:29.1]} 38. Kxe2 {[%clk 0:00:18.8]} 38... Qxf2+ {[%clk 0:00:30.7]} 39. Kd3
{[%clk 0:00:19.2]} 39... Qe3+ {[%clk 0:00:28.9]} 40. Kc4 {[%clk 0:00:19.7]}
40... Rxb7 {[%clk 0:00:30.4]} 41. Nxd4 {[%clk 0:00:20.9]} 41... Rc7+ {[%clk
0:00:31]} 0-1

[Event "*** Titled Tuesday 3|2 Blitz"]
[Site "Chess.com"]
[Date "2016.02.02"]
[Round "2"]
[White "Mornar1951"]
[Black "Dr-Bassem"]
[Result "1-0"]
[WhiteElo "2632"]
[BlackElo "2440"]
[TimeControl "180+2"]
[EndTime "11:25:37 PST"]
[Termination "Mornar1951 won by resignation"]

1. Nf3 {[%clk 0:03:01.9]} 1... f5 {[%clk 0:02:58]} 2. g3 {[%clk 0:03:02.3]} 2...
Nf6 {[%clk 0:02:59.4]} 3. Bg2 {[%clk 0:03:02.6]} 3... d6 {[%clk 0:03:01.1]} 4.
d4 {[%clk 0:03:03.1]} 4... e6 {[%clk 0:03:02.6]} 5. O-O {[%clk 0:03:03.5]} 5...
Be7 {[%clk 0:03:04.2]} 6. c4 {[%clk 0:03:05]} 6... O-O {[%clk 0:03:06]} 7. b3
{[%clk 0:03:06.5]} 7... Qe8 {[%clk 0:03:07]} 8. Bb2 {[%clk 0:03:08.1]} 8... Qg6
{[%clk 0:03:07.3]} 9. Nc3 {[%clk 0:03:08.5]} 9... Ne4 {[%clk 0:03:08.5]} 10. e3
{[%clk 0:03:00.9]} 10... Bf6 {[%clk 0:03:07.7]} 11. Ne2 {[%clk 0:03:00.6]} 11...
Qh6 {[%clk 0:03:05.6]} 12. Nd2 {[%clk 0:02:57.8]} 12... Nxd2 {[%clk 0:02:59.9]}
13. Qxd2 {[%clk 0:02:59.7]} 13... c6 {[%clk 0:03:00.1]} 14. c5 {[%clk
0:02:51.5]} 14... dxc5 {[%clk 0:02:59.5]} 15. dxc5 {[%clk 0:02:53.4]} 15... e5
{[%clk 0:03:00.3]} 16. f4 {[%clk 0:02:50.8]} 16... Rd8 {[%clk 0:02:51.5]} 17.
Qc2 {[%clk 0:02:49.4]} 17... Na6 {[%clk 0:02:48.9]} 18. Rad1 {[%clk 0:02:34.5]}
18... Be6 {[%clk 0:02:48.4]} 19. Rxd8+ {[%clk 0:02:34.1]} 19... Rxd8 {[%clk
0:02:48.6]} 20. Rd1 {[%clk 0:02:34.3]} 20... Rxd1+ {[%clk 0:02:45]} 21. Qxd1
{[%clk 0:02:36.2]} 21... exf4 {[%clk 0:02:38.2]} 22. Bxf6 {[%clk 0:02:36.2]}
22... Qxf6 {[%clk 0:02:40.1]} 23. Nxf4 {[%clk 0:02:36.8]} 23... Bc8 {[%clk
0:01:58.5]} 24. Qd4 {[%clk 0:02:33.5]} 24... Qxd4 {[%clk 0:01:58.8]} 25. exd4
{[%clk 0:02:35.4]} 25... Nb4 {[%clk 0:02:00.1]} 26. a3 {[%clk 0:02:24.1]} 26...
Nc2 {[%clk 0:01:53.1]} 27. d5 {[%clk 0:02:25.4]} 27... Bd7 {[%clk 0:01:16.8]}
28. Nd3 {[%clk 0:02:10]} 28... Nxa3 {[%clk 0:01:00.1]} 29. Ne5 {[%clk
0:02:10.1]} 29... Be8 {[%clk 0:00:53.3]} 30. d6 {[%clk 0:02:10.1]} 30... Nc2
{[%clk 0:00:49.4]} 31. Bf1 {[%clk 0:01:49.6]} 31... Kf8 {[%clk 0:00:47.6]} 32.
d7 {[%clk 0:01:46.8]} 32... Bxd7 {[%clk 0:00:48.5]} 33. Nxd7+ {[%clk 0:01:48.7]}
33... Ke7 {[%clk 0:00:50.2]} 34. Ne5 {[%clk 0:01:49.7]} 34... Ke6 {[%clk
0:00:50.5]} 35. Nc4 {[%clk 0:01:46.5]} 35... Nd4 {[%clk 0:00:47.4]} 36. b4
{[%clk 0:01:35.8]} 36... g5 {[%clk 0:00:40.8]} 37. Kf2 {[%clk 0:01:33.8]} 37...
f4 {[%clk 0:00:41.8]} 38. Bh3+ {[%clk 0:01:19.9]} 38... Kd5 {[%clk 0:00:42.1]}
39. Nd2 {[%clk 0:01:20.5]} 39... Nc2 {[%clk 0:00:30.8]} 40. gxf4 {[%clk
0:01:15.8]} 40... gxf4 {[%clk 0:00:31.3]} 41. Bf5 {[%clk 0:01:15.2]} 41... Nxb4
{[%clk 0:00:30.2]} 42. Bxh7 {[%clk 0:01:16.2]} 42... Kxc5 {[%clk 0:00:31.6]} 43.
h4 {[%clk 0:01:16.9]} 43... Kd6 {[%clk 0:00:29.5]} 44. h5 {[%clk 0:01:15]} 44...
Ke7 {[%clk 0:00:26.7]} 45. h6 {[%clk 0:01:15.4]} 45... Kf7 {[%clk 0:00:25.3]}
46. Nc4 {[%clk 0:01:11.7]} 46... Nd5 {[%clk 0:00:22.8]} 47. Nd6+ {[%clk
0:01:11.8]} 47... Kf6 {[%clk 0:00:21.3]} 48. Bg8 {[%clk 0:01:06.8]} 48... Kg6
{[%clk 0:00:20.6]} 49. h7 {[%clk 0:01:07.1]} 49... Kg7 {[%clk 0:00:14.5]} 50.
Nf7 {[%clk 0:01:08.1]} 1-0

[Event "*** Titled Tuesday 3|2 Blitz"]
[Site "Chess.com"]
[Date "2016.02.02"]
[Round "2"]
[White "Viaje"]
[Black "AndroQueen"]
[Result "0-1"]
[WhiteElo "2152"]
[BlackElo "2397"]
[TimeControl "180+2"]
[EndTime "11:25:55 PST"]
[Termination "AndroQueen won on time"]

1. d4 {[%clk 0:03:01.9]} 1... Nf6 {[%clk 0:02:59.9]} 2. c4 {[%clk 0:03:02.6]}
2... e6 {[%clk 0:02:59.8]} 3. Nc3 {[%clk 0:03:04]} 3... Bb4 {[%clk 0:03:00.3]}
4. f3 {[%clk 0:03:05.6]} 4... O-O {[%clk 0:02:55.1]} 5. a3 {[%clk 0:03:06.8]}
5... Bxc3+ {[%clk 0:02:56]} 6. bxc3 {[%clk 0:03:08.7]} 6... Ne8 {[%clk
0:02:55.1]} 7. e4 {[%clk 0:03:08.4]} 7... b6 {[%clk 0:02:55.6]} 8. Nh3 {[%clk
0:03:06.1]} 8... Nc6 {[%clk 0:02:54.3]} 9. Bd3 {[%clk 0:03:06]} 9... e5 {[%clk
0:02:50.5]} 10. Be3 {[%clk 0:02:32.7]} 10... d6 {[%clk 0:02:50.1]} 11. Nf2
{[%clk 0:02:31.2]} 11... f5 {[%clk 0:02:47.9]} 12. c5 {[%clk 0:02:18.9]} 12...
bxc5 {[%clk 0:02:36.5]} 13. dxc5 {[%clk 0:02:19.2]} 13... f4 {[%clk 0:02:29.8]}
14. Bc1 {[%clk 0:01:54.4]} 14... Be6 {[%clk 0:02:28.6]} 15. Qa4 {[%clk
0:01:47.6]} 15... Ne7 {[%clk 0:02:21.8]} 16. cxd6 {[%clk 0:01:43.9]} 16... cxd6
{[%clk 0:02:20.9]} 17. O-O {[%clk 0:01:44.6]} 17... Nf6 {[%clk 0:02:11.8]} 18.
Rd1 {[%clk 0:01:44.2]} 18... Qc7 {[%clk 0:02:12.7]} 19. Bd2 {[%clk 0:01:36]}
19... Nc8 {[%clk 0:02:05.8]} 20. Rab1 {[%clk 0:01:32]} 20... Nb6 {[%clk
0:02:06.9]} 21. Qa6 {[%clk 0:01:31.9]} 21... Rab8 {[%clk 0:01:59.6]} 22. Rb4
{[%clk 0:01:15.4]} 22... Nfd7 {[%clk 0:01:59.2]} 23. Bf1 {[%clk 0:01:05.7]}
23... Nc5 {[%clk 0:01:57.8]} 24. Qa5 {[%clk 0:00:53.7]} 24... Nb3 {[%clk
0:01:48.8]} 25. Qa6 {[%clk 0:00:50.6]} 25... Nxd2 {[%clk 0:01:27.6]} 26. Rxd2
{[%clk 0:00:52.5]} 26... Rfd8 {[%clk 0:01:28.7]} 27. c4 {[%clk 0:00:51.4]} 27...
Rbc8 {[%clk 0:01:09.8]} 28. Rc2 {[%clk 0:00:43.8]} 28... Rd7 {[%clk 0:00:47.1]}
29. Nd1 {[%clk 0:00:41.4]} 29... Qc5+ {[%clk 0:00:47.4]} 30. Kh1 {[%clk
0:00:40.8]} 30... Rdc7 {[%clk 0:00:47.7]} 31. Nb2 {[%clk 0:00:30.6]} 31... Qe3
{[%clk 0:00:39]} 32. h3 {[%clk 0:00:13.8]} 32... Qe1 {[%clk 0:00:35.4]} 33. Kg1
{[%clk 0:00:14.3]} 33... h6 {[%clk 0:00:28.7]} 34. Nd3 {[%clk 0:00:13.5]} 34...
Qe3+ {[%clk 0:00:28.6]} 35. Kh1 {[%clk 0:00:13.5]} 35... Nxc4 {[%clk 0:00:24.9]}
36. Nxf4 {[%clk 0:00:03.9]} 36... Qxf4 {[%clk 0:00:12.8]} 37. Bxc4 {[%clk
0:00:04.9]} 37... Kh7 {[%clk 0:00:08.4]} 38. Bxe6 {[%clk 0:00:02.1]} 38... Rxc2
{[%clk 0:00:09.2]} 39. Bf5+ {[%clk 0:00:03.2]} 39... Kh8 {[%clk 0:00:08.3]} 0-1

[Event "*** Titled Tuesday 3|2 Blitz"]
[Site "Chess.com"]
[Date "2016.02.02"]
[Round "2"]
[White "VMikhalevski"]
[Black "Smirnov_Pavel"]
[Result "0-1"]
[WhiteElo "2521"]
[BlackElo "2535"]
[TimeControl "180+2"]
[EndTime "11:26:13 PST"]
[Termination "Smirnov_Pavel won by resignation"]

1. c4 {[%clk 0:02:32]} 1... e6 {[%clk 0:02:58.1]} 2. Nf3 {[%clk 0:02:30.7]} 2...
d5 {[%clk 0:02:58.5]} 3. b3 {[%clk 0:02:30.4]} 3... Nf6 {[%clk 0:02:59.3]} 4. g3
{[%clk 0:02:30.4]} 4... Be7 {[%clk 0:03:00.7]} 5. Bg2 {[%clk 0:02:31.4]} 5...
O-O {[%clk 0:03:02.2]} 6. O-O {[%clk 0:02:32.2]} 6... c5 {[%clk 0:03:02.8]} 7.
e3 {[%clk 0:02:32.2]} 7... Nc6 {[%clk 0:03:02.9]} 8. Bb2 {[%clk 0:02:33.4]} 8...
d4 {[%clk 0:03:03.9]} 9. exd4 {[%clk 0:02:33.5]} 9... cxd4 {[%clk 0:03:05.1]}
10. d3 {[%clk 0:02:34.7]} 10... Re8 {[%clk 0:03:05.6]} 11. Re1 {[%clk
0:02:35.6]} 11... Bc5 {[%clk 0:03:05.8]} 12. Na3 {[%clk 0:02:36.2]} 12... e5
{[%clk 0:03:05.8]} 13. Nc2 {[%clk 0:02:37.2]} 13... a5 {[%clk 0:03:04.7]} 14. a3
{[%clk 0:02:37.9]} 14... Bf5 {[%clk 0:03:05.5]} 15. Qd2 {[%clk 0:02:36.8]} 15...
Qb6 {[%clk 0:03:02.8]} 16. Rab1 {[%clk 0:02:33.2]} 16... e4 {[%clk 0:02:51.3]}
17. dxe4 {[%clk 0:02:22.2]} 17... Nxe4 {[%clk 0:02:50.9]} 18. Qf4 {[%clk
0:02:10.4]} 18... d3 {[%clk 0:02:31.1]} 19. Ne3 {[%clk 0:01:56.1]} 19... Bg6
{[%clk 0:02:19.2]} 20. Bc1 {[%clk 0:01:37.2]} 20... Nc3 {[%clk 0:02:14.2]} 21.
Nd5 {[%clk 0:01:33.1]} 21... Rxe1+ {[%clk 0:01:31.9]} 22. Nxe1 {[%clk
0:01:32.7]} 22... Ne2+ {[%clk 0:01:33]} 23. Kf1 {[%clk 0:01:30.8]} 23... Nxf4
{[%clk 0:01:33.9]} 24. Nxb6 {[%clk 0:01:31]} 24... Bxb6 {[%clk 0:01:28.7]} 25.
Bxf4 {[%clk 0:01:17.9]} 25... d2 {[%clk 0:01:29.8]} 26. Rd1 {[%clk 0:01:17.7]}
26... dxe1=Q+ {[%clk 0:01:29.3]} 27. Kxe1 {[%clk 0:01:18.1]} 27... Re8+ {[%clk
0:01:28.6]} 28. Kf1 {[%clk 0:01:18.5]} 28... Bc5 {[%clk 0:01:16]} 29. Rd7 {[%clk
0:01:11.3]} 29... Bxa3 {[%clk 0:01:16.4]} 30. Bd5 {[%clk 0:01:06.5]} 30... Bc5
{[%clk 0:01:02.2]} 31. Rxb7 {[%clk 0:00:59.3]} 31... Nb4 {[%clk 0:01:02.7]} 32.
Bf3 {[%clk 0:00:51]} 32... Nd3 {[%clk 0:01:00.4]} 33. Bg5 {[%clk 0:00:32.6]}
33... h6 {[%clk 0:00:56.8]} 34. Bd2 {[%clk 0:00:31.1]} 34... Nxf2 {[%clk
0:00:54.7]} 35. Bxa5 {[%clk 0:00:28.8]} 35... Ne4 {[%clk 0:00:44.6]} 36. Kg2
{[%clk 0:00:26.2]} 36... Ng5 {[%clk 0:00:45.1]} 37. Bd5 {[%clk 0:00:24.3]} 37...
Re2+ {[%clk 0:00:43.2]} 38. Kf1 {[%clk 0:00:20.7]} 38... Bd3 {[%clk 0:00:43.9]}
39. Rc7 {[%clk 0:00:12.1]} 39... Ra2+ {[%clk 0:00:41.6]} 40. Ke1 {[%clk
0:00:11]} 40... Rxa5 {[%clk 0:00:42.6]} 41. Kd2 {[%clk 0:00:11]} 41... Bg6
{[%clk 0:00:43]} 42. Kc3 {[%clk 0:00:11.3]} 42... Bd6 {[%clk 0:00:43.5]} 43. Rd7
{[%clk 0:00:11.3]} 43... Be5+ {[%clk 0:00:42.3]} 44. Kb4 {[%clk 0:00:12.3]}
44... Ra1 {[%clk 0:00:43]} 45. c5 {[%clk 0:00:13]} 45... Ne6 {[%clk 0:00:43.9]}
46. c6 {[%clk 0:00:12.7]} 46... Rc1 {[%clk 0:00:43.7]} 47. Bc4 {[%clk
0:00:13.2]} 47... Kh7 {[%clk 0:00:42.2]} 48. Rd5 {[%clk 0:00:12.7]} 48... Bc7
{[%clk 0:00:42.3]} 49. Rd7 {[%clk 0:00:12.8]} 49... Be5 {[%clk 0:00:42.2]} 50.
Rd5 {[%clk 0:00:12.9]} 50... Bc3+ {[%clk 0:00:43.1]} 51. Kb5 {[%clk 0:00:11.1]}
51... Nc7+ {[%clk 0:00:43.9]} 52. Kb6 {[%clk 0:00:12.5]} 52... Nxd5+ {[%clk
0:00:44.9]} 0-1

[Event "*** Titled Tuesday 3|2 Blitz"]
[Site "Chess.com"]
[Date "2016.02.02"]
[Round "2"]
[White "ChadaevNikolay"]
[Black "DanielRensch"]
[Result "1-0"]
[WhiteElo "2537"]
[BlackElo "2352"]
[TimeControl "180+2"]
[EndTime "11:26:16 PST"]
[Termination "ChadaevNikolay won by resignation"]

1. e4 {[%clk 0:03:01.9]} 1... c5 {[%clk 0:02:57.2]} 2. Nf3 {[%clk 0:03:02.6]}
2... d6 {[%clk 0:02:57.2]} 3. Nc3 {[%clk 0:03:03.6]} 3... Nf6 {[%clk 0:02:57]}
4. d4 {[%clk 0:03:02.5]} 4... cxd4 {[%clk 0:02:57.4]} 5. Qxd4 {[%clk 0:03:03.5]}
5... Nc6 {[%clk 0:02:54.3]} 6. Bb5 {[%clk 0:03:03.5]} 6... Bd7 {[%clk
0:02:55.4]} 7. Bxc6 {[%clk 0:03:04.5]} 7... Bxc6 {[%clk 0:02:53.4]} 8. Bg5
{[%clk 0:03:05]} 8... e6 {[%clk 0:02:54.1]} 9. O-O-O {[%clk 0:03:06.3]} 9... Be7
{[%clk 0:02:54.1]} 10. Rhe1 {[%clk 0:03:06.5]} 10... Qa5 {[%clk 0:02:54]} 11.
Qd2 {[%clk 0:02:43.6]} 11... Rc8 {[%clk 0:02:52.3]} 12. Kb1 {[%clk 0:02:42.6]}
12... O-O {[%clk 0:02:17.4]} 13. Nd5 {[%clk 0:02:10.2]} 13... Qd8 {[%clk
0:02:17.1]} 14. Nxe7+ {[%clk 0:02:09.6]} 14... Qxe7 {[%clk 0:02:19]} 15. Nd4
{[%clk 0:01:51.6]} 15... h6 {[%clk 0:02:13.4]} 16. Bh4 {[%clk 0:01:28.8]} 16...
Kh8 {[%clk 0:01:55.9]} 17. f3 {[%clk 0:01:26.6]} 17... Rg8 {[%clk 0:01:49.6]}
18. Bf2 {[%clk 0:01:19.9]} 18... d5 {[%clk 0:01:31.7]} 19. e5 {[%clk 0:01:18.7]}
19... Nd7 {[%clk 0:01:31.5]} 20. g4 {[%clk 0:01:14.7]} 20... Nf8 {[%clk
0:00:52]} 21. h4 {[%clk 0:01:14.2]} 21... Bd7 {[%clk 0:00:47.2]} 22. f4 {[%clk
0:01:11.4]} 22... Nh7 {[%clk 0:00:42.6]} 23. f5 {[%clk 0:01:05.3]} 23... exf5
{[%clk 0:00:40.4]} 24. gxf5 {[%clk 0:01:04.9]} 24... f6 {[%clk 0:00:36]} 25. e6
{[%clk 0:01:03.5]} 25... Be8 {[%clk 0:00:36.8]} 26. Re3 {[%clk 0:00:55.1]} 26...
Bh5 {[%clk 0:00:37.2]} 27. Rde1 {[%clk 0:00:52.6]} 27... Rc4 {[%clk 0:00:37.8]}
28. b3 {[%clk 0:00:52.3]} 28... Rc7 {[%clk 0:00:38]} 29. Bg3 {[%clk 0:00:47.2]}
29... Rc5 {[%clk 0:00:39]} 30. Rc3 {[%clk 0:00:43.8]} 30... Rgc8 {[%clk
0:00:39.3]} 31. Rxc5 {[%clk 0:00:44.7]} 31... Qxc5 {[%clk 0:00:39.7]} 32. Kb2
{[%clk 0:00:45.1]} 32... b5 {[%clk 0:00:38.8]} 33. a3 {[%clk 0:00:44.2]} 33...
a6 {[%clk 0:00:39.5]} 34. Re3 {[%clk 0:00:44.6]} 34... Bg4 {[%clk 0:00:40]} 35.
Rc3 {[%clk 0:00:41.5]} 35... Qf8 {[%clk 0:00:37.7]} 36. Bd6 {[%clk 0:00:35.7]}
36... Qe8 {[%clk 0:00:36.6]} 37. Rxc8 {[%clk 0:00:32.7]} 37... Qxc8 {[%clk
0:00:38.5]} 38. Qc3 {[%clk 0:00:32.4]} 38... Qe8 {[%clk 0:00:38.9]} 39. Qc7
{[%clk 0:00:27.3]} 39... Kg8 {[%clk 0:00:37.8]} 40. Kc3 {[%clk 0:00:20.8]} 40...
Nf8 {[%clk 0:00:38.7]} 41. Bxf8 {[%clk 0:00:14.1]} 41... Qxf8 {[%clk 0:00:39.2]}
42. Kb2 {[%clk 0:00:12.7]} 42... h5 {[%clk 0:00:39]} 43. Qd7 {[%clk 0:00:12]}
43... Qc5 {[%clk 0:00:36.2]} 44. e7 {[%clk 0:00:11.7]} 44... Qxd4+ {[%clk
0:00:37]} 45. Ka2 {[%clk 0:00:12.7]} 1-0